fUST/lending_fUST_20250302
["ID","MTS","AMOUNT","RATE_DAILY","PERIOD"]
[355030639,1740875458576,-549.87,0.00025205,2]
[355030640,1740875458588,-500.0,0.00025205,2]
[355030641,1740875458598,-217.91203669,0.00025205,2]
[355030642,1740875458608,-500.0,0.00025205,2]
[355030643,1740875458617,-500.0,0.00025205,2]
[355030644,1740875458628,-500.0,0.00025205,2]
[355030645,1740875458637,-151.0,0.00025205,7]
[355030646,1740875458647,-152.277099,0.00025205,7]
[355030647,1740875458656,-151.0,0.00025205,7]
[355030648,1740875458668,-508.06437309,0.00025205,2]
[355030649,1740875458678,-984.44,0.00025205,2]
[355030650,1740875458687,-946.25,0.00025205,2]
[355030651,1740875458697,-719.8,0.00025205,2]
[355030652,1740875458706,-151.0,0.00025205,7]
[355030653,1740875458716,-376.988901,0.00025205,7]
[355030654,1740875458727,-376.988901,0.00025205,7]
[355030655,1740875458736,-376.988901,0.00025205,7]
[355030656,1740875458746,-346.449302,0.00025205,7]
[355030657,1740875458756,-346.449302,0.00025205,7]
[355030658,1740875458765,-346.449302,0.00025205,7]
[355030659,1740875458775,-151.0,0.00025205,7]
[355030660,1740875458785,-500.0,0.00025205,2]
[355030661,1740875458795,-346.449302,0.00025205,7]
[355030662,1740875458804,-346.449302,0.00025205,7]
[355030663,1740875458814,-346.449302,0.00025205,7]
[355030664,1740875458823,-505.23536334,0.00025205,2]
[355030665,1740875458833,-500.0,0.00025205,2]
[355030666,1740875458842,-1125.23,0.00025205,2]
[355030667,1740875458853,-196.14217479,0.00025205,2]
[355030668,1740875458863,-874.39,0.00025205,2]
[355030669,1740875458873,-744.89,0.00025205,2]
[355030670,1740875458883,-520.94228378,0.00025205,2]
[355030671,1740875458893,-2857.73,0.00025205,2]
[355030672,1740875458903,-500.0,0.00025205,2]
[355030673,1740875458913,-500.0,0.00025205,2]
[355030674,1740875458923,-500.0,0.00025205,2]
[355030675,1740875458933,-500.0,0.00025205,2]
[355030676,1740875458943,-807.23,0.00025205,2]
[355030677,1740875458953,-1246.96,0.00025205,2]
[355030678,1740875458962,-500.0,0.00025205,2]
[355030679,1740875458973,-241.204969,0.00025205,7]
[355030680,1740875458985,-241.204969,0.00025205,7]
[355030681,1740875458995,-961.34,0.00025205,2]
[355030682,1740875459005,-500.0,0.00025205,2]
[355030683,1740875459015,-500.0,0.00025205,2]
[355030684,1740875459024,-241.204969,0.00025205,7]
[355030685,1740875459034,-241.204969,0.00025205,7]
[355030686,1740875459043,-500.0,0.00025205,2]
[355030687,1740875459053,-271.111896,0.00025205,7]
[355030688,1740875459062,-271.111896,0.00025205,7]
[355030689,1740875459073,-500.0,0.00025205,2]
[355030690,1740875459082,-500.0,0.00025205,2]
[355030691,1740875459092,-549.75,0.00025205,2]
[355030692,1740875459101,-271.111896,0.00025205,7]
[355030693,1740875459111,-271.111896,0.00025205,7]
[355030694,1740875459120,-500.0,0.00025205,2]
[355030695,1740875459130,-500.0,0.00025205,2]
[355030696,1740875459141,-354.614926,0.00025205,7]
[355030697,1740875459152,-937.53,0.00025205,2]
[355030698,1740875459162,-354.614926,0.00025205,7]
[355030699,1740875459175,-1248.66,0.00025205,2]
[355030700,1740875459186,-500.0,0.00025205,2]
[355030701,1740875459197,-1882.04,0.00025205,2]
[355030702,1740875459208,-151.0,0.00025205,7]
[355030703,1740875459227,-151.0,0.00025205,7]
[355030704,1740875459237,-500.0,0.00025205,2]
[355030705,1740875459247,-500.0,0.00025205,2]
[355030706,1740875459256,-1955.24,0.00025205,2]
[355030707,1740875459266,-1062.0,0.00025205,2]
[355030708,1740875459275,-1649.16,0.00025205,2]
[355030709,1740875459285,-802.26,0.00025205,2]
[355030710,1740875459294,-500.0,0.00025205,2]
[355030711,1740875459304,-509.54,0.00025205,2]
[355030712,1740875459314,-505.27103851,0.00025205,2]
[355030713,1740875459323,-500.0,0.00025205,2]
[355030714,1740875459333,-720.87,0.00025205,2]
[355030715,1740875459342,-500.0,0.00025205,2]
[355030716,1740875459351,-876.58,0.00025205,2]
[355030717,1740875459361,-500.0,0.00025205,2]
[355030718,1740875459370,-500.0,0.00025205,2]
[355030719,1740875459380,-201502.24,0.00025205,2]
[355030720,1740875459389,-2258.67,0.00025205,2]
[355030721,1740875459399,-151.0,0.00025205,7]
[355030722,1740875459408,-151.0,0.00025205,7]
[355030723,1740875459418,-500.0,0.00025205,2]
[355030724,1740875459427,-500.0,0.00025205,2]
[355030725,1740875459437,-11790.14,0.00025205,2]
[355030726,1740875459447,-500.0,0.00025205,2]
[355030727,1740875459456,-151.0,0.00025205,7]
[355030728,1740875459465,-500.0,0.00025205,2]
[355030729,1740875459475,-151.0,0.00025205,7]
[355030730,1740875459484,-500.0,0.00025205,2]
[355030731,1740875459494,-500.0,0.00025205,2]
[355030732,1740875459504,-151.0,0.00025205,7]
[355030733,1740875459514,-160.0,0.00025205,7]
[355030734,1740875459523,-490.79394895,0.00025205,2]
[355030735,1740875459533,-500.0,0.00025205,2]
[355030736,1740875459542,-1948.74,0.00025205,2]
[355030737,1740875459551,-377.507149,0.00025205,7]
[355030738,1740875459562,-377.507149,0.00025205,7]
[355030739,1740875459573,-500.0,0.00025205,2]
[355030740,1740875459583,-500.0,0.00025205,2]
[355030741,1740875459598,-500.0,0.00025205,2]
[355030742,1740875459608,-158.079616,0.00025205,7]
[355030743,1740875459618,-500.0,0.00025205,2]
[355030744,1740875459627,-377.507149,0.00025205,7]
[355030745,1740875459637,-500.0,0.00025205,2]
[355030746,1740875459647,-377.507149,0.00025205,7]
[355030747,1740875459656,-672.71,0.00025205,2]
[355030748,1740875459667,-4247.77,0.00025205,2]
[355030749,1740875459677,-500.0,0.00025205,2]
[355030750,1740875459687,-4705.65,0.00025205,2]
[355030751,1740875459696,-645.42,0.00025205,2]
[355030752,1740875459706,-2901.38,0.00025205,2]
[355030753,1740875459715,-1668.27,0.00025205,2]
[355030754,1740875459725,-160.0,0.00025205,7]
[355030755,1740875459735,-500.0,0.00025205,2]
[355030756,1740875459744,-722.32,0.00025205,2]
[355030757,1740875459754,-151.0,0.00025205,7]
[355030758,1740875459763,-500.0,0.00025205,2]
[355030759,1740875459779,-2283.95,0.00025205,2]
[355030760,1740875459788,-151.0,0.00025205,7]
[355030761,1740875459798,-890.2,0.00025205,2]
[355030762,1740875459807,-500.0,0.00025205,2]
[355030763,1740875459817,-3966.88,0.00025205,2]
[355030764,1740875459826,-500.0,0.00025205,2]
[355030765,1740875459835,-1208.99,0.00025205,2]
[355030766,1740875459845,-500.0,0.00025205,2]
[355030767,1740875459855,-500.0,0.00025205,2]
[355030768,1740875459865,-5438.9,0.00025205,2]
[355030769,1740875459877,-500.0,0.00025205,2]
[355030770,1740875459887,-1446.62,0.00025205,2]
[355030771,1740875459896,-580.36,0.00025205,2]
[355030772,1740875459906,-500.0,0.00025205,2]
[355030773,1740875459915,-2258.79,0.00025205,2]
[355030774,1740875459925,-500.0,0.00025205,2]
[355030775,1740875459934,-500.0,0.00025205,2]
[355030776,1740875459943,-500.0,0.00025205,2]
[355030777,1740875459952,-653.79,0.00025205,2]
[355030778,1740875459961,-500.0,0.00025205,2]
[355030779,1740875459971,-500.0,0.00025205,2]
[355030780,1740875459981,-536.49,0.00025205,2]
[355030781,1740875459990,-1310.51,0.00025205,2]
[355030782,1740875460000,-1204.18,0.00025205,2]
[355030783,1740875460009,-500.0,0.00025205,2]
[355030784,1740875460020,-1987.77,0.00025205,2]
[355030785,1740875460030,-500.0,0.00025205,2]
[355030786,1740875460040,-500.0,0.00025205,2]
[355030787,1740875460050,-1549.58243,0.00025205,7]
[355030788,1740875460059,-500.0,0.00025205,2]
[355030789,1740875460069,-1320.7,0.00025205,2]
[355030790,1740875460079,-764.41,0.00025205,2]
[355030791,1740875460089,-1549.58243,0.00025205,7]
[355030792,1740875460098,-554.48,0.00025205,2]
[355030793,1740875460108,-500.0,0.00025205,2]
[355030794,1740875460118,-500.0,0.00025205,2]
[355030795,1740875460127,-500.0,0.00025205,2]
[355030796,1740875460137,-500.0,0.00025205,2]
[355030797,1740875460146,-1589.61,0.00025205,2]
[355030798,1740875460156,-5461.69,0.00025205,2]
[355030799,1740875460165,-500.0,0.00025205,2]
[355030800,1740875460174,-500.0,0.00025205,2]
[355030801,1740875460184,-1233.41,0.00025205,2]
[355030802,1740875460193,-500.0,0.00025205,2]
[355030803,1740875460203,-500.0,0.00025205,2]
[355030804,1740875460213,-500.0,0.00025205,2]
[355030805,1740875460223,-509.37,0.00025205,2]
[355030806,1740875460233,-500.0,0.00025205,2]
[355030807,1740875460242,-154.78528346,0.00025205,2]
[355030808,1740875460251,-500.0,0.00025205,2]
[355030809,1740875460261,-500.0,0.00025205,2]
[355030810,1740875460272,-890.99,0.00025205,2]
[355030811,1740875460283,-500.0,0.00025205,2]
[355030812,1740875460296,-794.56,0.00025205,2]
[355030813,1740875460306,-19624.61182001,0.00025205,7]
[355030814,1740875460315,-593.57,0.00025205,2]
[355030815,1740875460324,-807.34,0.00025205,2]
[355030816,1740875460334,-500.0,0.00025205,2]
[355030817,1740875460343,-12198.06,0.00025205,2]
[355030818,1740875460353,-781.17,0.00025205,2]
[355030819,1740875460362,-500.0,0.00025205,2]
[355030820,1740875460371,-500.0,0.00025205,2]
[355030821,1740875460381,-17176.89,0.00025205,2]
[355030822,1740875460390,-500.0,0.00025205,2]
[355030823,1740875460399,-500.0,0.00025205,2]
[355030824,1740875460408,-162.635591,0.00025205,7]
[355030825,1740875460418,-503.92,0.00025205,2]
[355030826,1740875460427,-1083.175398,0.00025205,7]
[355030827,1740875460437,-224.66557078,0.00025205,2]
[355030828,1740875460447,-500.0,0.00025205,2]
[355030829,1740875460463,-162.635591,0.00025205,7]
[355030830,1740875460473,-1083.175398,0.00025205,7]
[355030831,1740875460483,-1052.22,0.00025205,2]
[355030832,1740875460493,-500.0,0.00025205,2]
[355030833,1740875460503,-1237.75,0.00025205,2]
[355030834,1740875460585,-500.0,0.00025205,2]
[355030835,1740875460598,-500.0,0.00025205,2]
[355030836,1740875460608,-534.46,0.00025205,2]
[355030837,1740875460617,-500.0,0.00025205,2]
[355030838,1740875460626,-6581.65,0.00025205,2]
[355030839,1740875460637,-500.0,0.00025205,2]
[355030840,1740875460646,-500.0,0.00025205,2]
[355030841,1740875460656,-1030.020155,0.00025205,7]
[355030842,1740875460666,-1367.07,0.00025205,2]
[355030843,1740875460676,-151.0,0.00025205,7]
[355030844,1740875460685,-3497.87,0.00025205,2]
[355030845,1740875460694,-151.0,0.00025205,7]
[355030846,1740875460703,-151.0,0.00025205,7]
[355030847,1740875460714,-151.0,0.00025205,7]
[355030848,1740875460724,-1030.020155,0.00025205,7]
[355030849,1740875460733,-639.03,0.00025205,2]
[355030850,1740875460742,-500.0,0.00025205,2]
[355030851,1740875460752,-151.0,0.00025205,7]
[355030852,1740875460762,-1271.13,0.00025205,2]
[355030853,1740875460771,-500.0,0.00025205,2]
[355030854,1740875460781,-36107.27,0.00025205,2]
[355030855,1740875460790,-500.0,0.00025205,2]
[355030856,1740875460799,-500.0,0.00025205,2]
[355030857,1740875460808,-4732.64,0.00025205,2]
[355030858,1740875460818,-500.0,0.00025205,2]
[355030859,1740875460827,-819.26,0.00025205,2]
[355030860,1740875460837,-1205.45,0.00025205,5]
[355030861,1740875460846,-814.72,0.00025205,2]
[355030862,1740875460855,-151.0,0.00025205,7]
[355030863,1740875460865,-151.0,0.00025205,7]
[355030864,1740875460874,-1703.92,0.00025205,2]
[355030865,1740875460884,-329.919589,0.00025205,7]
[355030866,1740875460893,-329.919589,0.00025205,7]
[355030867,1740875460902,-789.93,0.00025205,2]
[355030868,1740875460912,-329.919589,0.00025205,7]
[355030869,1740875460921,-329.919589,0.00025205,7]
[355030870,1740875460931,-500.0,0.00025205,2]
[355030871,1740875460940,-500.0,0.00025205,2]
[355030872,1740875460949,-885.15,0.00025205,2]
[355030873,1740875460959,-1434.53,0.00025205,2]
[355030874,1740875460969,-500.0,0.00025205,2]
[355030875,1740875460978,-458.90305887,0.00025205,2]
[355030876,1740875462092,-7822.76379182,0.00024357,2]
[355030877,1740875462103,-2449.24720721,0.00024357,2]
[355030878,1740875462136,-500.0,0.00024357,2]
[355030879,1740875462473,-411.11179919,0.00024357,2]
[355030880,1740875462484,-14746.62266623,0.00024357,2]
[355030881,1740875462509,-272.19120742,0.00024357,2]
[355030886,1740876399320,2098.0,0.0002,2]
[355030887,1740876443139,-301.0,0.00022,2]
[355030888,1740876443171,-301.0,0.00022192,2]
[355030889,1740876443203,-300.0,0.00022783,2]
[355030890,1740876443235,-399.62318817,0.00022784,2]
[355030893,1740876553107,-1412.1165745,0.00022574,2]
[355030894,1740876553129,-300.0,0.00022783,2]
[355030895,1740876553150,-24152.79615172,0.00022784,2]
[355030896,1740876558105,-347.58066011,0.00022784,2]
[355030897,1740876558126,-187.622516,0.00022912,2]
[355030898,1740876558147,-260.43390347,0.00023014,2]
[355030899,1740876560133,-40.56609653,0.00023014,2]
[355030900,1740876560155,-128.85804983,0.00023105,2]
[355030909,1740876632018,-294.60748155,0.00020684,2]
[355030910,1740876632029,-6860.05695,0.00023232,2]
[355030911,1740876632038,-301.0,0.00024164,2]
[355030912,1740876632048,-300.0,0.00024356,2]
[355030913,1740876632057,-14557.56551523,0.00024357,2]
[355030914,1740876632069,-36046.08664963,0.00024357,2]
[355030915,1740876632127,-419.5982992,0.00024357,2]
[355030953,1740876637727,-887.22283497,0.00024257,2]
[355030954,1740876637737,-144774.81286407,0.00024357,2]
[355030955,1740876637746,-150.0,0.00024357,2]
[355030956,1740876637756,-387.27,0.000244,7]
[355030957,1740876637767,-3000.0,0.00024557,2]
[355030958,1740876637777,-216.44770676,0.00024557,2]
[355030959,1740876637788,-216.44770675,0.00024626,2]
[355030960,1740876637798,-500.0,0.00024657,2]
[355030961,1740876637808,-501.90072505,0.00024657,2]
[355030962,1740876637817,-500.0,0.00024657,2]
[355030963,1740876637827,-536.05514205,0.00024657,2]
[355030964,1740876637837,-551.9536448,0.00024657,2]
[355030965,1740876637846,-500.0,0.00024657,2]
[355030966,1740876637856,-558.2776123,0.00024657,2]
[355030967,1740876637866,-500.0,0.00024657,2]
[355030968,1740876637875,-500.0,0.00024657,2]
[355030969,1740876637885,-504.89299059,0.00024657,2]
[355030970,1740876637895,-500.0,0.00024657,2]
[355030971,1740876637905,-500.0,0.00024657,2]
[355030972,1740876637914,-284.45236407,0.00024657,2]
[355030973,1740876637924,-534.51152598,0.00024657,2]
[355030975,1740876637933,-500.0,0.00024657,2]
[355030977,1740876637943,-500.0,0.00024657,2]
[355030980,1740876637954,-304.11530453,0.00024657,2]
[355030983,1740876637968,-476.03491322,0.00024657,2]
[355030985,1740876637978,-500.0,0.00024657,2]
[355030988,1740876637988,-309.19359549,0.00024657,2]
[355030990,1740876637999,-500.0,0.00024657,2]
[355030992,1740876638009,-500.0,0.00024657,2]
[355030994,1740876638020,-500.0,0.00024657,2]
[355030996,1740876638031,-500.0,0.00024657,2]
[355030998,1740876638042,-500.0,0.00024657,2]
[355031000,1740876638053,-659.79,0.00024657,2]
[355031002,1740876638063,-500.0,0.00024657,2]
[355031004,1740876638072,-500.0,0.00024657,2]
[355031006,1740876638082,-1457.98,0.00024657,2]
[355031008,1740876638092,-500.0,0.00024657,2]
[355031010,1740876638101,-500.0,0.00024657,2]
[355031012,1740876638111,-500.0,0.00024657,2]
[355031014,1740876638120,-500.0,0.00024657,2]
[355031016,1740876638129,-500.0,0.00024657,2]
[355031018,1740876638139,-500.0,0.00024657,2]
[355031019,1740876638149,-500.0,0.00024657,2]
[355031020,1740876638159,-500.0,0.00024657,2]
[355031021,1740876638169,-500.0,0.00024657,2]
[355031022,1740876638179,-584.53899195,0.00024657,2]
[355031023,1740876638188,-500.0,0.00024657,2]
[355031024,1740876638198,-500.0,0.00024657,2]
[355031025,1740876638208,-500.0,0.00024657,2]
[355031026,1740876638218,-500.0,0.00024657,2]
[355031027,1740876638227,-500.0,0.00024657,2]
[355031028,1740876638237,-500.0,0.00024657,2]
[355031029,1740876638247,-554.82,0.00024657,2]
[355031030,1740876638256,-500.0,0.00024657,2]
[355031031,1740876638266,-500.0,0.00024657,2]
[355031032,1740876638276,-500.0,0.00024657,2]
[355031033,1740876638287,-500.0,0.00024657,2]
[355031034,1740876638297,-500.0,0.00024657,2]
[355031035,1740876638308,-500.0,0.00024657,2]
[355031036,1740876638318,-880.95,0.00024657,2]
[355031037,1740876638328,-504.05068478,0.00024657,2]
[355031038,1740876638338,-500.0,0.00024657,2]
[355031039,1740876638348,-234.83147696,0.00024657,2]
[355031040,1740876638358,-500.0,0.00024657,2]
[355031041,1740876638368,-500.0,0.00024657,2]
[355031042,1740876638377,-500.0,0.00024657,2]
[355031043,1740876638387,-500.0,0.00024657,2]
[355031044,1740876638396,-500.0,0.00024657,2]
[355031045,1740876638410,-500.0,0.00024657,2]
[355031046,1740876638428,-500.0,0.00024657,2]
[355031047,1740876638442,-500.0,0.00024657,2]
[355031048,1740876638455,-500.0,0.00024657,2]
[355031049,1740876638467,-500.0,0.00024657,2]
[355031050,1740876638481,-615.80236531,0.00024657,2]
[355031051,1740876638495,-500.0,0.00024657,2]
[355031052,1740876638508,-500.0,0.00024657,2]
[355031053,1740876638522,-500.0,0.00024657,2]
[355031054,1740876638538,-500.0,0.00024657,2]
[355031055,1740876638552,-500.0,0.00024657,2]
[355031056,1740876638565,-500.0,0.00024657,2]
[355031057,1740876638579,-500.0,0.00024657,2]
[355031058,1740876638592,-500.0,0.00024657,2]
[355031059,1740876638603,-500.0,0.00024657,2]
[355031060,1740876638615,-500.0,0.00024657,2]
[355031061,1740876638630,-500.0,0.00024657,2]
[355031062,1740876638643,-500.0,0.00024657,2]
[355031063,1740876638657,-500.0,0.00024657,2]
[355031064,1740876638671,-500.0,0.00024657,2]
[355031065,1740876638684,-500.0,0.00024657,2]
[355031066,1740876638698,-500.0,0.00024657,2]
[355031067,1740876638711,-802.53,0.00024657,2]
[355031068,1740876638725,-500.0,0.00024657,2]
[355031069,1740876638737,-500.0,0.00024657,2]
[355031070,1740876638750,-1243.36,0.00024657,2]
[355031071,1740876638765,-503.84917594,0.00024657,2]
[355031072,1740876638779,-500.0,0.00024657,2]
[355031073,1740876638796,-500.0,0.00024657,2]
[355031074,1740876638808,-500.0,0.00024657,2]
[355031075,1740876638824,-567.62,0.00024657,2]
[355031076,1740876638836,-500.0,0.00024657,2]
[355031077,1740876638851,-500.0,0.00024657,2]
[355031078,1740876638865,-500.0,0.00024657,2]
[355031079,1740876638882,-500.0,0.00024657,2]
[355031080,1740876638895,-500.0,0.00024657,2]
[355031081,1740876638908,-500.0,0.00024657,2]
[355031082,1740876638921,-500.0,0.00024657,2]
[355031083,1740876638933,-500.0,0.00024657,2]
[355031084,1740876638945,-500.0,0.00024657,2]
[355031085,1740876638960,-500.0,0.00024657,2]
[355031086,1740876638975,-500.0,0.00024657,2]
[355031087,1740876638992,-500.0,0.00024657,2]
[355031088,1740876639003,-504.10048671,0.00024657,2]
[355031089,1740876639015,-500.0,0.00024657,2]
[355031090,1740876639026,-500.0,0.00024657,2]
[355031091,1740876639040,-500.0,0.00024657,2]
[355031092,1740876639053,-500.0,0.00024657,2]
[355031093,1740876639068,-500.0,0.00024657,2]
[355031094,1740876639081,-500.0,0.00024657,2]
[355031095,1740876639094,-500.0,0.00024657,2]
[355031096,1740876639106,-1372.88,0.00024657,2]
[355031097,1740876639118,-500.0,0.00024657,2]
[355031098,1740876639133,-500.0,0.00024657,2]
[355031099,1740876639145,-753.47,0.00024657,2]
[355031100,1740876639158,-500.0,0.00024657,2]
[355031101,1740876639170,-500.0,0.00024657,2]
[355031102,1740876639189,-500.0,0.00024657,2]
[355031103,1740876639201,-500.0,0.00024657,2]
[355031104,1740876639213,-500.0,0.00024657,2]
[355031105,1740876639225,-500.0,0.00024657,2]
[355031107,1740876639237,-500.0,0.00024657,2]
[355031108,1740876639249,-500.0,0.00024657,2]
[355031109,1740876639261,-500.0,0.00024657,2]
[355031110,1740876639274,-500.0,0.00024657,2]
[355031112,1740876639287,-500.0,0.00024657,2]
[355031113,1740876639299,-353.42112393,0.00024657,2]
[355031114,1740876639311,-500.0,0.00024657,2]
[355031115,1740876639323,-500.0,0.00024657,2]
[355031116,1740876639335,-500.0,0.00024657,2]
[355031117,1740876639347,-500.0,0.00024657,2]
[355031118,1740876639360,-500.0,0.00024657,2]
[355031119,1740876639372,-500.0,0.00024657,2]
[355031121,1740876639384,-500.0,0.00024657,2]
[355031122,1740876639395,-500.0,0.00024657,2]
[355031123,1740876639407,-500.0,0.00024657,2]
[355031124,1740876639419,-500.0,0.00024657,2]
[355031125,1740876639431,-500.0,0.00024657,2]
[355031126,1740876639443,-500.0,0.00024657,2]
[355031127,1740876639455,-500.0,0.00024657,2]
[355031128,1740876639467,-500.0,0.00024657,2]
[355031129,1740876639479,-500.0,0.00024657,2]
[355031130,1740876639491,-500.0,0.00024657,2]
[355031131,1740876639502,-501.89073655,0.00024657,2]
[355031132,1740876639514,-500.0,0.00024657,2]
[355031133,1740876639526,-500.0,0.00024657,2]
[355031134,1740876639539,-945.73,0.00024657,2]
[355031135,1740876639551,-500.0,0.00024657,2]
[355031136,1740876639563,-161.76926756,0.00024657,2]
[355031137,1740876639575,-500.0,0.00024657,2]
[355031138,1740876639586,-500.0,0.00024657,2]
[355031139,1740876639598,-500.0,0.00024657,2]
[355031141,1740876639610,-500.0,0.00024657,2]
[355031142,1740876639622,-500.0,0.00024657,2]
[355031143,1740876639634,-500.0,0.00024657,2]
[355031144,1740876639646,-500.0,0.00024657,2]
[355031145,1740876639657,-500.0,0.00024657,2]
[355031146,1740876639669,-918.66,0.00024657,2]
[355031147,1740876639683,-500.0,0.00024657,2]
[355031148,1740876639695,-500.0,0.00024657,2]
[355031149,1740876639707,-500.0,0.00024657,2]
[355031150,1740876639719,-500.0,0.00024657,2]
[355031151,1740876639731,-500.0,0.00024657,2]
[355031152,1740876639743,-500.0,0.00024657,2]
[355031153,1740876639755,-500.0,0.00024657,2]
[355031155,1740876639768,-500.0,0.00024657,2]
[355031157,1740876639780,-500.0,0.00024657,2]
[355031159,1740876639793,-500.0,0.00024657,2]
[355031161,1740876639806,-500.0,0.00024657,2]
[355031164,1740876639817,-500.0,0.00024657,2]
[355031166,1740876639829,-500.0,0.00024657,2]
[355031168,1740876639842,-612.93,0.00024657,2]
[355031170,1740876639853,-500.0,0.00024657,2]
[355031173,1740876639865,-500.0,0.00024657,2]
[355031175,1740876639878,-500.0,0.00024657,2]
[355031177,1740876639890,-500.0,0.00024657,2]
[355031179,1740876639901,-500.0,0.00024657,2]
[355031180,1740876639914,-500.0,0.00024657,2]
[355031181,1740876639926,-500.0,0.00024657,2]
[355031183,1740876639938,-500.0,0.00024657,2]
[355031184,1740876639950,-500.0,0.00024657,2]
[355031185,1740876639965,-500.0,0.00024657,2]
[355031186,1740876639978,-500.0,0.00024657,2]
[355031187,1740876639990,-500.0,0.00024657,2]
[355031188,1740876640002,-500.0,0.00024657,2]
[355031189,1740876640015,-500.0,0.00024657,2]
[355031190,1740876640027,-719.8,0.00024657,2]
[355031191,1740876640041,-500.0,0.00024657,2]
[355031192,1740876640053,-500.0,0.00024657,2]
[355031193,1740876640064,-500.0,0.00024657,2]
[355031194,1740876640076,-500.0,0.00024657,2]
[355031195,1740876640090,-500.0,0.00024657,2]
[355031196,1740876640101,-500.0,0.00024657,2]
[355031197,1740876640113,-500.0,0.00024657,2]
[355031198,1740876640124,-500.0,0.00024657,2]
[355031199,1740876640136,-551.54,0.00024657,2]
[355031200,1740876640148,-1058.42,0.00024657,2]
[355031201,1740876640160,-500.0,0.00024657,2]
[355031202,1740876640172,-500.0,0.00024657,2]
[355031203,1740876640185,-922.23,0.00024657,2]
[355031204,1740876640197,-533.40424609,0.00024657,2]
[355031207,1740876640210,-500.0,0.00024657,2]
[355031209,1740876640223,-161.55409881,0.00024657,2]
[355031210,1740876640235,-500.0,0.00024657,2]
[355031211,1740876640247,-500.0,0.00024657,2]
[355031212,1740876640259,-500.0,0.00024657,2]
[355031213,1740876640271,-500.0,0.00024657,2]
[355031214,1740876640283,-1362.17,0.00024657,2]
[355031215,1740876640296,-500.0,0.00024657,2]
[355031216,1740876640308,-500.0,0.00024657,2]
[355031217,1740876640321,-500.0,0.00024657,2]
[355031218,1740876640332,-500.0,0.00024657,2]
[355031219,1740876640344,-1272.96,0.00024657,2]
[355031220,1740876640356,-500.0,0.00024657,2]
[355031221,1740876640367,-165.40084644,0.00024657,10]
[355031222,1740876640380,-1246.96,0.00024657,2]
[355031223,1740876640392,-500.0,0.00024657,2]
[355031224,1740876640404,-752.43,0.00024657,2]
[355031225,1740876640416,-500.0,0.00024657,2]
[355031226,1740876640429,-500.0,0.00024657,2]
[355031227,1740876640442,-511.70009024,0.00024657,2]
[355031228,1740876640454,-500.0,0.00024657,2]
[355031229,1740876640466,-1291.1,0.00024657,2]
[355031230,1740876640478,-500.0,0.00024657,2]
[355031231,1740876640489,-500.0,0.00024657,2]
[355031232,1740876640501,-500.0,0.00024657,2]
[355031233,1740876640514,-500.0,0.00024657,2]
[355031234,1740876640526,-500.0,0.00024657,2]
[355031235,1740876640538,-500.0,0.00024657,2]